[Event "AI Cup Div-3 2023"]
[Site "Online"]
[Date "2023.09.25"]
[Round "1.1"]
[White "Kramnik, Vladimir"]
[Black "Asadli, Vugar"]
[Result "1/2-1/2"]
[Annotator "TA"]
[ECO "B07"]
[WhiteElo "2753"]
[BlackElo "2563"]
[PlyCount "50"]
[EventDate "2023.09.18"]
[EventType "k.o."]
[EventCountry "NET"]
[SourceTitle "playchess.com"]
[Source "ChessBase"]
[SourceQuality "1"]
[TimeControl "900+3"]

{[%evp 16,50,33,5,26,-12,25,12,27,25,28,24,46,44,49,33,41,39,75,71,98,80,127,126,124,100,104,0,0,2,42,29,52,54,137,118,114]} 1. Nf3 {[%emt 0:00:09]} Nf6 {[%emt 0:00:06]} 2. g3 {[%emt 0:00:03]} g6 {[%emt 0:00:03]} 3. Bg2 {[%emt 0:00:02]} Bg7 {[%emt 0:00:00]} 4. O-O {[%emt 0:00:02]} O-O {[%emt 0:00:01]} 5. d4 {[%emt 0:00:08]} d6 {[%emt 0:00:01]} 6. Re1 {[%emt 0:00:06]} Nbd7 {[%emt 0:00:08]} 7. e4 {[%emt 0:00:06]} e5 {[%emt 0:00:01]} 8. Nc3 {[%emt 0:00:04]} Re8 {[%emt 0:00:28]} 9. h3 {[%emt 0:00:15]} b6 {[%emt 0:00:17] B07: Pirc Defence: Miscellaneous Systems.} 10. a4 {[%emt 0:00:20]} a5 {[%emt 0:00:12]} 11. Bg5 {[%emt 0:00:15] [#]} Bb7 $5 $146 {[%emt 0:00:24][%mdl 8] The position is equal. An interesting novelty.} ({Predecessor:} 11... h6 12. Be3 Bb7 13. d5 Nc5 14. Nd2 c6 15. dxc6 Bxc6 16. Bxc5 dxc5 17. Nc4 Qc7 18. Qd6 {1-0 Cobb,J (2395)-Hebden,M (2545) BCF-ch rapidplay 2006 (3)}) 12. Qd2 {[%emt 0:00:10]} Qc8 {[%emt 0:00:22]} 13. Rad1 {[%emt 0:00:33]} exd4 {[%emt 0:00:04]} 14. Nxd4 {[%emt 0:00:02]} Nc5 {[%emt 0:00:02][%cal Rf6e4]} 15. f3 {[%emt 0:00:29]} Ne6 {[%emt 0:00:20]} 16. Be3 {[%emt 0:00:26]} Nd7 {[%emt 0:00:52]} 17. Ndb5 {[%emt 0:00:13]} Ne5 {[%emt 0:00:12]} 18. b3 {[%emt 0:00:06] Dodges Nc4} Nc6 {[%emt 0:00:14]} (18... Nd7 $142) 19. Nd5 $16 {[%emt 0:00:14]} Ne7 {[%emt 0:00:40]} 20. Bf2 {[%emt 0:01:20] White has more active pieces.} Bc6 {[%emt 0:00:39] [#]} 21. Nxd6 {[%emt 0:01:06]} cxd6 $11 {[%emt 0:00:03]} 22. Nxb6 {[%emt 0:00:01]} (22. Bxb6 $2 {loses.} Bxd5 23. exd5 Bc3 $19) 22... Qb7 {[%emt 0:00:33]} 23. Nxa8 {[%emt 0:00:03]} Qxa8 {[%emt 0:00:44]} 24. Qxd6 {[%emt 0:00:05]} g5 {[%emt 0:00:01] [#]} ({Black should play} 24... Bc3 $14) 25. f4 $1 $16 {[%emt 0:01:52]} Bc3 {[%emt 0:00:29] Weighted Error Value: White=0.17 (very precise) /Black=0.21 (precise)} 1/2-1/2

[Event "AI Cup Div-3 2023"]
[Site "Online"]
[Date "2023.09.25"]
[Round "1.1"]
[White "Radjabov, Teimour"]
[Black "Paravyan, David"]
[Result "1/2-1/2"]
[Annotator "TA"]
[ECO "D32"]
[WhiteElo "2745"]
[BlackElo "2599"]
[PlyCount "172"]
[EventDate "2023.09.18"]
[EventType "k.o."]
[EventCountry "NET"]
[SourceTitle "playchess.com"]
[Source "ChessBase"]
[SourceQuality "1"]
[TimeControl "900+3"]

{[%evp 19,172,25,36,0,0,0,12,6,34,25,30,20,35,43,29,22,21,25,18,0,25,5,22,13,10,16,16,16,16,16,16,0,0,0,19,22,27,3,8,7,10,12,44,25,25,29,35,12,21,13,47,20,22,20,20,20,40,40,40,40,40,40,40,40,40,0,40,40,40,40,40,40,40,40,40,40,40,0,0,0,0,0,0,0,0,0,0,0,0,0,0,0,0,0,0,0,0,0,0,0,0,0,0,0,0,0,0,0,5,0,0,0,0,0,0,0,0,0,0,0,0,0,0,0,0,0,0,0,0,0,0,0,0,0,0,0,0,0,0,0,0,0,0,0,0,0,0,0,0,0,0,0,0,0,0]} 1. d4 {[%emt 0:00:09]} d5 {[%emt 0:00:05]} 2. c4 {[%emt 0:00:01]} e6 {[%emt 0:00:01]} 3. Nc3 {[%emt 0:00:03]} Nf6 {[%emt 0:00:01]} 4. Nf3 {[%emt 0:00:02]} c5 {[%emt 0:00:01]} 5. e3 {[%emt 0:00:03]} Nc6 {[%emt 0:00:23]} 6. cxd5 {[%emt 0:00:08]} exd5 {[%emt 0:00:00]} 7. Be2 {[%emt 0:00:02]} Be7 {[%emt 0:00:40]} 8. O-O {[%emt 0:00:03]} O-O {[%emt 0:00:01]} 9. b3 {[%emt 0:00:04]} Ne4 {[%emt 0:00:16]} 10. Bb2 {[%emt 0:00:07]} Bf6 {[%emt 0:00:12]} 11. Na4 {[%emt 0:01:30] D32: Tarrasch Defence: Sidelines and lines without g3.} (11. Rc1 $5 {[%cal Rc3e4]}) 11... cxd4 {[%emt 0:01:04]} 12. Nxd4 {[%emt 0:00:03]} Bd7 {[%emt 0:00:12]} 13. Rc1 {[%emt 0:00:33]} Nxd4 {[%emt 0:01:20]} 14. Bxd4 {[%emt 0:00:07]} Bxa4 {[%emt 0:00:00]} 15. bxa4 {[%emt 0:00:03]} Rc8 {[%emt 0:00:01]} 16. Rxc8 {[%emt 0:00:20]} Qxc8 {[%emt 0:00:00] [#]} 17. Bxf6 $146 {[%emt 0:00:19]} ({Predecessor:} 17. Bf3 Rd8 18. Bxa7 Qc4 19. Bb6 Rc8 20. a5 g6 21. g3 h5 22. h4 Bc3 23. Bxe4 Qxe4 {½-½ Zhao,Y (2461)-Zhou,W (2604) CHN-chT DivA 2023 (8.4)}) 17... Nxf6 {[%emt 0:00:02]} 18. Qd4 {[%emt 0:02:13]} b6 {[%emt 0:00:39]} 19. Bd3 {[%emt 0:00:20][%cal Oa4a5]} Qc7 {[%emt 0:00:12]} 20. h3 {[%emt 0:00:12]} (20. Rb1 $5 {[%cal Ra4a5]}) 20... Rc8 {[%emt 0:00:02]} 21. Bf5 {[%emt 0:00:03]} Re8 {[%emt 0:00:14]} 22. Rd1 {[%emt 0:00:25][%cal Bf1d1,Bd1d2,Bd2c2][%mdl 32]} Qc5 {[%emt 0:01:36]} 23. g4 {[%emt 0:00:14]} h6 {[%emt 0:01:32]} 24. Kg2 {[%emt 0:00:08]} Re7 {[%emt 0:00:44]} 25. Qf4 {[%emt 0:01:43]} Qc7 {[%emt 0:00:59] Wards off Qb8+} 26. Qd4 {[%emt 0:01:46][%cal Oa4a5]} Qc6 {[%emt 0:00:04]} 27. Rd2 {[%emt 0:00:22]} g6 {[%emt 0:01:14]} 28. Bd3 {[%emt 0:00:07]} (28. Rc2 $5 {[%cal Rc2c6]} Qd6 29. Bd3 $14) 28... Ne4 {[%emt 0:00:27]} 29. Rc2 {[%emt 0:00:28]} Nc5 {[%emt 0:01:19] [#]} 30. a5 $1 {[%emt 0:00:17]} Qe6 {[%emt 0:00:03]} (30... Rd7 31. Be2) 31. Be2 {[%emt 0:01:33]} Qe4+ $1 {[%emt 0:00:12]} 32. Qxe4 {[%emt 0:00:03]} dxe4 $11 {[%emt 0:00:01][%mdl 4096] Endgame KRB-KRN} 33. h4 {[%emt 0:00:18]} Kg7 {[%emt 0:00:08]} 34. Kg3 {[%emt 0:00:06]} g5 {[%emt 0:00:03]} 35. hxg5 {[%emt 0:00:03]} hxg5 {[%emt 0:00:00]} 36. axb6 {[%emt 0:00:16]} axb6 {[%emt 0:00:02]} 37. Rb2 {[%emt 0:00:01]} Re6 {[%emt 0:00:02]} 38. Rd2 {[%emt 0:00:06]} Nd3 {[%emt 0:01:16]} 39. Bxd3 $14 {[%emt 0:00:25] KRB-KR} Rd6 {[%emt 0:00:02][%mdl 64] [#] Pin} 40. f3 $1 {[%emt 0:00:01]} exd3 {[%emt 0:00:01] KR-KR} 41. e4 {[%emt 0:00:04]} b5 {[%emt 0:00:06]} 42. Kf2 {[%emt 0:00:12]} Ra6 {[%emt 0:00:21]} 43. Ke3 {[%emt 0:00:04]} Ra3 {[%emt 0:00:01]} 44. Rxd3 {[%emt 0:00:43]} Rxa2 {[%emt 0:00:02]} 45. Rd5 {[%emt 0:00:01][%csl LRb5,LRg5]} Ra3+ {[%emt 0:00:04]} 46. Kf2 {[%emt 0:00:04]} f6 {[%emt 0:00:06]} 47. Rxb5 {[%emt 0:00:02]} Kg6 {[%emt 0:00:06]} 48. e5 {[%emt 0:00:22]} fxe5 {[%emt 0:00:01] The position is equal.} 49. Rxe5 {[%emt 0:00:00]} Rb3 {[%emt 0:00:05]} 50. Rd5 {[%emt 0:00:03]} Ra3 {[%emt 0:00:03]} 51. Ke2 {[%emt 0:00:01]} Kf6 {[%emt 0:00:01]} 52. Rd6+ {[%emt 0:00:04]} Kf7 {[%emt 0:00:02]} (52... Ke5 $5 {[%cal Re5d6]} 53. Rd3 Ra4 $14) 53. Rd3 {[%emt 0:00:02]} Ra1 {[%emt 0:00:10]} 54. Ke3 {[%emt 0:00:04]} Re1+ {[%emt 0:00:10]} 55. Kd4 {[%emt 0:00:01]} Kf6 {[%emt 0:00:05]} 56. Rc3 {[%emt 0:00:08]} Rd1+ {[%emt 0:00:05]} 57. Ke4 {[%emt 0:00:02]} Re1+ {[%emt 0:00:01]} 58. Kd3 {[%emt 0:00:01]} Rd1+ {[%emt 0:00:10]} 59. Ke2 {[%emt 0:00:03]} Ra1 {[%emt 0:00:02]} 60. Rc6+ {[%emt 0:00:02]} Kf7 {[%emt 0:00:01]} 61. Ke3 {[%emt 0:00:00]} Ra4 {[%emt 0:00:18]} 62. Rd6 {[%emt 0:00:04]} Rb4 {[%emt 0:00:15]} 63. Rd4 {[%emt 0:00:02]} Rb1 {[%emt 0:00:19]} 64. Rc4 {[%emt 0:00:10]} Re1+ {[%emt 0:00:02]} 65. Kd4 {[%emt 0:00:02]} Kf6 {[%emt 0:00:07]} 66. Rc6+ {[%emt 0:00:02]} Kf7 {[%emt 0:00:01]} 67. Rb6 {[%emt 0:00:03]} Re2 {[%emt 0:00:02]} 68. Rb5 {[%emt 0:00:19]} Kf6 {[%emt 0:00:01]} 69. Rf5+ {[%emt 0:00:01]} Kg6 {[%emt 0:00:01]} 70. Re5 {[%emt 0:00:00]} Rd2+ {[%emt 0:00:08]} 71. Ke4 {[%emt 0:00:02]} Re2+ {[%emt 0:00:03]} 72. Kd5 {[%emt 0:00:01]} Rd2+ {[%emt 0:00:03]} 73. Ke4 {[%emt 0:00:01]} Re2+ {[%emt 0:00:01]} 74. Kd4 {[%emt 0:00:01]} Rd2+ {[%emt 0:00:01]} 75. Ke3 {[%emt 0:00:02]} Rd1 {[%emt 0:00:06]} 76. Re4 {[%emt 0:00:03]} Kf6 {[%emt 0:00:03]} 77. Rd4 {[%emt 0:00:04]} Re1+ {[%emt 0:00:01]} 78. Kf2 {[%emt 0:00:01]} Ra1 {[%emt 0:00:01]} 79. Rd6+ {[%emt 0:00:02]} Kf7 {[%emt 0:00:02]} 80. Ke3 {[%emt 0:00:00]} Re1+ {[%emt 0:00:03]} 81. Kd4 {[%emt 0:00:03]} Re2 {[%emt 0:00:03]} 82. Rd5 {[%emt 0:00:09]} Kf6 {[%emt 0:00:01]} 83. Rf5+ {[%emt 0:00:02]} Kg6 {[%emt 0:00:00]} 84. Kd5 {[%emt 0:00:02]} Ra2 {[%emt 0:00:06]} 85. Re5 {[%emt 0:00:16]} Ra5+ {[%emt 0:00:01]} 86. Ke6 {[%emt 0:00:02]} Ra3 {[%emt 0:00:11] Weighted Error Value: White=0.07 (flawless) /Black=0.06 (flawless)} 1/2-1/2

[Event "AI Cup Div-3 2023"]
[Site "Online"]
[Date "2023.09.25"]
[Round "1.1"]
[White "Sevian, Samuel"]
[Black "Yilmaz, Mustafa"]
[Result "1-0"]
[Annotator "TA"]
[ECO "A13"]
[WhiteElo "2698"]
[BlackElo "2640"]
[PlyCount "83"]
[EventDate "2023.09.18"]
[EventType "k.o."]
[EventCountry "NET"]
[SourceTitle "playchess.com"]
[Source "ChessBase"]
[SourceQuality "1"]
[TimeControl "900+3"]

{[%evp 9,83,9,29,23,17,20,27,21,20,27,32,28,30,24,16,0,29,0,0,-23,-13,-16,0,0,0,-6,0,-29,-10,-47,60,56,60,51,68,69,147,120,125,83,132,127,118,116,127,103,101,127,129,118,121,104,129,95,88,94,133,98,230,71,67,0,94,22,81,14,421,420,551,544,516,486,5086,500,1986,1830]} 1. Nf3 {[%emt 0:00:15]} d5 {[%emt 0:00:06]} 2. e3 {[%emt 0:00:05]} Nf6 {[%emt 0:00:08]} 3. c4 {[%emt 0:00:01]} e6 {[%emt 0:00:03]} 4. b3 {[%emt 0:00:01]} Bd6 {[%emt 0:00:33]} 5. Bb2 {[%emt 0:00:04]} c5 {[%emt 0:00:16]} 6. cxd5 {[%emt 0:00:06] A13: English Opening: 1...e6.} exd5 {[%emt 0:00:02]} 7. d4 $5 {[%emt 0:00:01][%mdl 4] Exploring less charted territory.} Nc6 {[%emt 0:00:20]} 8. dxc5 {[%emt 0:00:04] White has an edge.} Bxc5 {[%emt 0:00:05]} 9. Bb5 {[%emt 0:00:01]} O-O {[%emt 0:00:57]} 10. O-O {[%emt 0:00:02]} Bg4 {[%emt 0:00:15]} 11. h3 {[%emt 0:00:15]} Bh5 {[%emt 0:00:03]} 12. Qc2 {[%emt 0:02:37]} Bd6 {[%emt 0:01:10]} 13. Bxc6 {[%emt 0:00:37]} bxc6 {[%emt 0:01:09]} 14. Nbd2 {[%emt 0:04:58]} Rc8 {[%emt 0:00:06] [#]} 15. Be5 $146 {[%emt 0:00:25]} ({Predecessor:} 15. Rac1 Re8 16. Qc3 {½-½ De Weerd,J (2085)-Engelaer,M (1875) Brasschaat op 19th 2019 (4)}) 15... Re8 {[%emt 0:00:54]} 16. Bxd6 {[%emt 0:00:12]} Qxd6 {[%emt 0:00:00]} 17. Rac1 {[%emt 0:00:04]} c5 {[%emt 0:00:06]} 18. Qb2 {[%emt 0:00:12]} a5 {[%emt 0:00:06]} 19. Rc3 {[%emt 0:00:43]} Ne4 {[%emt 0:00:32]} (19... Nd7 $15) 20. Nxe4 $14 {[%emt 0:00:02]} dxe4 {[%emt 0:00:03]} 21. Nd2 {[%emt 0:00:07]} Rcd8 {[%emt 0:00:49]} 22. Rc2 {[%emt 0:00:39]} a4 {[%emt 0:03:13]} 23. Rfc1 {[%emt 0:00:35]} axb3 {[%emt 0:00:04]} 24. axb3 {[%emt 0:01:15]} Bg6 {[%emt 0:01:12] [#]} ({Better is} 24... h6) 25. Nf1 $1 $16 {[%emt 0:00:27]} Re5 {[%emt 0:00:52]} 26. Qa3 {[%emt 0:00:10]} h5 {[%emt 0:00:08]} 27. Rd2 {[%emt 0:00:49]} Rd5 {[%emt 0:00:29]} 28. Rxd5 {[%emt 0:00:06]} Qxd5 {[%emt 0:00:01]} 29. Rxc5 {[%emt 0:00:00]} (29. Qxc5 $6 Qxb3 30. Qa5 Qd5 31. Qxd5 Rxd5 $11) 29... Qb7 {[%emt 0:01:12]} 30. Rc1 {[%emt 0:00:35] Against Rd1} Rd3 {[%emt 0:00:13]} 31. Rb1 {[%emt 0:00:01]} h4 {[%emt 0:00:11]} 32. Qa4 {[%emt 0:00:27]} Bh5 {[%emt 0:00:43]} 33. b4 {[%emt 0:00:13][%cal Bb3b4,Bb4b5,Bb5b6,Bb6b7][%mdl 32]} Rd6 {[%emt 0:00:08]} (33... Rd8 $16 {was worth a try.}) 34. Qc2 $2 {[%emt 0:00:12]} (34. Qe8+ $18 {and the rest is easy.} Kh7 35. Qe5) 34... Rg6 {[%emt 0:00:12]} 35. Kh1 {[%emt 0:00:14]} (35. Nh2 $14) 35... Qd5 {[%emt 0:00:20]} (35... Bf3 $1 $11 36. gxf3 Qd7) 36. Nh2 {[%emt 0:00:07]} (36. Rc1 $16) 36... Qd3 {[%emt 0:00:04]} (36... Rc6 $11 {remains equal.} 37. Qb2 Rg6) 37. Qb2 {[%emt 0:00:04]} (37. Qxd3 $16 {Qd8+ would be deadly.} exd3 38. Nf3) 37... Rg5 $2 {[%emt 0:00:05][%mdl 8192]} (37... Rb6 $11 {and Black stays safe.}) 38. b5 $18 {[%emt 0:00:03] [#] And now b6 would win.} Rc5 {[%emt 0:00:03]} 39. b6 {[%emt 0:00:01] Threatens to win with b7. White is clearly winning.} Rc2 {[%emt 0:00:00]} 40. Qe5 {[%emt 0:00:04] b7 is the strong threat.} Rxf2 {[%emt 0:00:03]} (40... Rc5 $142 41. Qb2 (41. Qxc5 Qxb1+ $11) 41... Rc8) 41. Rg1 {[%emt 0:00:01]} (41. Ra1 $142 {Threatening mate with Ra8+.} Ra2 {[%mdl 64] Decoy} 42. Rxa2 Qb1+ 43. Nf1 Qxa2 44. b7) 41... Qxe3 {[%emt 0:00:05]} (41... Qb3 $142 42. Qxh5 Qxb6 43. Qxh4 Rf6 44. Qxe4 Qc6) 42. b7 {[%emt 0:00:03] Weighted Error Value: White=0.36/Black=0.48} 1-0

[Event "AI Cup Div-3 2023"]
[Site "Online"]
[Date "2023.09.25"]
[Round "1.1"]
[White "Tomashevsky, Evgeny"]
[Black "Kobo, Ori"]
[Result "1-0"]
[Annotator "TA"]
[ECO "E94"]
[WhiteElo "2694"]
[BlackElo "2551"]
[PlyCount "65"]
[EventDate "2023.09.18"]
[EventType "k.o."]
[EventCountry "NET"]
[SourceTitle "playchess.com"]
[Source "ChessBase"]
[SourceQuality "1"]
[TimeControl "900+3"]

{[%evp 12,65,37,35,45,25,25,28,27,5,22,8,43,40,49,33,37,43,45,33,59,8,11,20,27,31,59,12,22,0,29,22,35,-8,18,14,0,0,0,0,41,77,158,147,160,172,268,253,748,716,1204,1166,1069,1035,802,768]} 1. d4 {[%emt 0:00:07]} Nf6 {[%emt 0:00:06]} 2. c4 {[%emt 0:00:03]} g6 {[%emt 0:00:00]} 3. Nc3 {[%emt 0:00:05]} Bg7 {[%emt 0:00:01]} 4. e4 {[%emt 0:00:02]} d6 {[%emt 0:00:01]} 5. Nf3 {[%emt 0:00:01]} O-O {[%emt 0:00:03]} 6. Be2 {[%emt 0:00:02]} e5 {[%emt 0:00:14]} 7. O-O {[%emt 0:00:01]} b6 {[%emt 0:00:01] E94: King's Indian: Classical: 6 Be2 e5 7 0-0: Various Black 7th moves.} 8. Re1 $5 {[%emt 0:00:45][%mdl 4] Leaves trodden paths.} exd4 {[%emt 0:00:14]} 9. Nxd4 {[%emt 0:00:02]} Bb7 {[%emt 0:00:07] [#] White has an edge.} 10. Bd3 $1 $146 {[%emt 0:01:20][%mdl 8] A top novelty.} (10. Bg5 h6 11. Bh4 g5 $11) ({Predecessor:} 10. f3 Ne8 11. Be3 c5 12. Nc2 Be5 13. Bf1 f5 14. exf5 gxf5 15. Bh6 Bxh2+ 16. Kxh2 {1-0 Vitiugov,N (2727)-Fedoseev,V (2704) RUS-ch 74th Ufa 2021 (3)}) 10... Nbd7 {[%emt 0:01:12][%cal Of6g4]} 11. Bg5 {[%emt 0:00:06]} h6 {[%emt 0:00:13]} 12. Bh4 {[%emt 0:00:02]} Re8 {[%emt 0:00:30]} 13. Bc2 {[%emt 0:00:13]} Ne5 {[%emt 0:00:53]} 14. b3 {[%emt 0:00:09]} Qd7 {[%emt 0:01:08]} 15. Rc1 {[%emt 0:00:42]} (15. f4 Nc6 16. Nxc6 Bxc6 $11) 15... a6 {[%emt 0:00:11]} 16. Bb1 {[%emt 0:00:38]} (16. f4 $14 Nc6 17. Nxc6 Qxc6 18. Nd5 Nxd5 19. cxd5) 16... c5 $11 {[%emt 0:00:25]} 17. Nf3 {[%emt 0:00:54]} Nxf3+ {[%emt 0:00:53]} 18. Qxf3 {[%emt 0:00:03]} Ng4 {[%emt 0:00:01]} 19. Rcd1 {[%emt 0:01:26]} (19. h3 $14 Ne5 20. Qd1) 19... Ne5 {[%emt 0:01:11]} (19... b5 $5) 20. Qe3 {[%emt 0:00:37]} b5 {[%emt 0:00:19]} 21. cxb5 {[%emt 0:01:31]} axb5 {[%emt 0:00:02]} 22. h3 {[%emt 0:00:01]} (22. Nd5 $5 {[%cal Rd5b6]}) 22... f5 {[%emt 0:01:47] [#] Hoping for ...g5.} (22... g5 $5 {[%cal Rg5h4]} 23. Bg3 f5 24. Bxe5 Bxe5 $11) 23. f4 {[%emt 0:00:50]} Nf7 {[%emt 0:00:10]} 24. Nd5 {[%emt 0:00:04]} Bxd5 {[%emt 0:00:16]} 25. Rxd5 {[%emt 0:00:03]} g5 {[%emt 0:01:23]} 26. Bf2 {[%emt 0:00:42]} Bd4 {[%emt 0:01:32]} (26... fxe4 $142 27. fxg5 (27. Qxc5 gxf4 28. Bxe4 Rxa2 $11) 27... Nxg5) 27. Qd2 {[%emt 0:00:21]} Bxf2+ {[%emt 0:00:07]} 28. Qxf2 {[%emt 0:00:02]} fxe4 {[%emt 0:00:20]} (28... gxf4 $142 29. Qxf4 (29. Rxf5 Re6 $16) 29... Re5 30. Rxe5 dxe5 31. Qg3+ (31. Qxf5 Qxf5 32. exf5 Rd8 $16) 31... Kh8) 29. Bxe4 $18 {[%emt 0:00:23]} Re7 $2 {[%emt 0:00:19]} (29... c4 30. Rdd1 Rab8) 30. fxg5 {[%emt 0:01:25] White is clearly winning.} Nxg5 {[%emt 0:00:14] [#]} 31. Rxg5+ $1 {[%emt 0:00:06][%mdl 576] Discovered Attack} hxg5 {[%emt 0:00:01]} 32. Bxa8 {[%emt 0:00:01] Threatens to win with Rf1.} Rxe1+ {[%emt 0:00:06]} 33. Qxe1 {[%emt 0:00:02] Weighted Error Value: White=0.14 (very precise) /Black=0.23 (precise)} 1-0

[Event "AI Cup Div-3 2023"]
[Site "Online"]
[Date "2023.09.25"]
[Round "1.1"]
[White "Xiong, Jeffery"]
[Black "Matlakov, Maxim"]
[Result "1/2-1/2"]
[Annotator "TA"]
[ECO "B14"]
[WhiteElo "2693"]
[BlackElo "2674"]
[PlyCount "134"]
[EventDate "2023.09.18"]
[EventType "k.o."]
[EventCountry "NET"]
[SourceTitle "playchess.com"]
[Source "ChessBase"]
[SourceQuality "1"]
[TimeControl "900+3"]

{[%evp 23,134,0,3,17,0,0,0,0,41,22,8,26,74,56,36,41,67,90,86,96,113,117,110,107,103,114,127,112,146,47,30,39,29,38,195,193,193,199,182,194,194,154,160,158,167,159,147,129,155,103,160,137,189,190,186,126,110,106,176,136,179,72,72,72,80,112,104,60,61,64,66,64,66,59,67,50,50,50,50,50,50,50,50,50,50,50,62,64,65,50,50,50,50,8,8,0,0,-8,0,-8,0,0,0,0,0,0,0,0,0,0,0,0,0]} 1. c4 {[%emt 0:00:05]} c6 {[%emt 0:00:05]} 2. e4 {[%emt 0:00:10]} d5 {[%emt 0:00:02]} 3. exd5 {[%emt 0:00:00]} cxd5 {[%emt 0:00:01]} 4. d4 {[%emt 0:00:01]} Nf6 {[%emt 0:00:04]} 5. Nc3 {[%emt 0:00:01]} e6 {[%emt 0:00:26]} 6. Nf3 {[%emt 0:00:01]} Bb4 {[%emt 0:00:02]} 7. cxd5 {[%emt 0:00:03]} exd5 {[%emt 0:00:02]} 8. Bd3 {[%emt 0:00:38]} O-O {[%emt 0:00:04]} 9. O-O {[%emt 0:00:01]} Bg4 {[%emt 0:00:02]} 10. Bg5 {[%emt 0:02:05]} Bxc3 {[%emt 0:00:07]} 11. bxc3 {[%emt 0:00:00]} Nbd7 {[%emt 0:00:01]} 12. h3 {[%emt 0:00:14]} Bh5 $1 {[%emt 0:00:03]} 13. c4 {[%emt 0:00:26] B14: Caro-Kann: Panov-Botvinnik Attack with 5...e6 and 5...g6.} dxc4 {[%emt 0:00:34]} 14. Bxc4 {[%emt 0:00:00]} Rc8 {[%emt 0:00:22]} 15. Bb3 {[%emt 0:00:06]} Qa5 {[%emt 0:00:14]} 16. Qd2 {[%emt 0:02:19]} Qxd2 {[%emt 0:08:39]} 17. Nxd2 {[%emt 0:00:00][%cal Bf3d2,Bd2e4,Be4d6][%mdl 32] [#]} Nb6 $146 {[%emt 0:00:01]} (17... h6 $11 {was preferrable.} 18. Bf4 a5) ({Predecessor:} 17... h6 18. Bf4 Nb6 19. Rac1 Nbd5 20. Be5 Nc3 21. Kh2 Nfd5 22. Ne4 Nxe4 23. Rxc8 Rxc8 24. Bxd5 {½-½ Nun,J (2460)-Plachetka,J (2430) Namestovo 1987 (8)}) 18. Bxf6 {[%emt 0:00:24]} gxf6 {[%emt 0:00:03]} 19. Ne4 {[%emt 0:00:52]} Kg7 {[%emt 0:00:18]} 20. f4 {[%emt 0:02:08]} Be2 {[%emt 0:02:17]} 21. Rfe1 {[%emt 0:00:03]} Bc4 {[%emt 0:00:43]} 22. Nd6 {[%emt 0:00:22][%csl LRb7,LRc8]} Rc6 {[%emt 0:00:03]} 23. Nf5+ {[%emt 0:02:38]} Kh8 {[%emt 0:00:01]} 24. Re7 $36 {[%emt 0:00:01][%mdl 2048] White is really pushing.} Be6 {[%emt 0:00:54]} 25. Ne3 {[%emt 0:00:16] White is more active.} Rd8 {[%emt 0:00:15]} 26. f5 {[%emt 0:01:24]} (26. Rxb7 $16 Rxd4 27. f5 (27. Rxa7 Rxf4 28. Bxe6 Rxe6 $16) 27... Bxb3 28. axb3) 26... Nc8 {[%emt 0:00:38]} 27. Rxb7 {[%emt 0:00:18]} Bxb3 {[%emt 0:00:02]} 28. axb3 {[%emt 0:00:05]} Rxd4 $2 {[%emt 0:00:01]} (28... Kg7 $1 $14) 29. Rxf7 $18 {[%emt 0:00:11] [#] Threatens to win with Ng4.} Kg8 {[%emt 0:00:08]} 30. Rb7 {[%emt 0:00:01]} h5 {[%emt 0:00:01]} 31. Ra5 {[%emt 0:00:30]} a6 {[%emt 0:00:04]} 32. Rd5 {[%emt 0:00:16] Dodges Nd6} Rxd5 {[%emt 0:00:09]} 33. Nxd5 $16 {[%emt 0:00:00][%mdl 4096] Endgame KRN-KRN} Kf8 {[%emt 0:00:03]} 34. Nf4 {[%emt 0:00:04]} Nd6 {[%emt 0:00:05]} 35. Ng6+ {[%emt 0:00:16]} Ke8 {[%emt 0:00:02]} 36. Re7+ {[%emt 0:00:00]} Kd8 {[%emt 0:00:01]} 37. Re6 {[%emt 0:00:00]} Rc1+ {[%emt 0:00:02] [#]} (37... Kc7 $16) 38. Kh2 $1 $18 {[%emt 0:00:01]} Nxf5 {[%emt 0:00:04]} 39. Rxa6 {[%emt 0:00:09]} (39. Rxf6 $18 Ne3 40. Rxa6) 39... Ne3 $16 {[%emt 0:00:12]} 40. Kg3 {[%emt 0:00:01]} ({Much weaker is} 40. Rxf6 $6 Nf1+ 41. Kh1 Ng3+ 42. Kh2 Nf1+ 43. Kh1 Ng3+ 44. Kh2 Nf1+ $11) 40... Rc3 {[%emt 0:00:02]} (40... Nf5+ $16 41. Kf4 Rf1+ 42. Ke4 Kd7) 41. b4 {[%emt 0:00:13]} Rb3 {[%emt 0:00:03]} 42. Re6 {[%emt 0:00:26]} (42. Rxf6 $18 {and White stays clearly on top. Black must now prevent Rf3.} Rxb4 43. Rf3) 42... Nd5+ {[%emt 0:00:05]} 43. Kh4 {[%emt 0:00:01] And now Rd6+ would win.} Rxb4+ {[%emt 0:00:01]} 44. Kxh5 {[%emt 0:00:01] Strongly threatening Rd6+.} Kd7 {[%emt 0:00:01] Wards off Rd6+} 45. Nf8+ {[%emt 0:00:06]} Kc7 {[%emt 0:00:01]} 46. g3 {[%emt 0:00:01] Prevents Nf4+} Rb3 {[%emt 0:00:01]} 47. Kh4 {[%emt 0:00:01]} Rb4+ {[%emt 0:00:01]} 48. g4 {[%emt 0:00:02]} Rb3 {[%emt 0:00:02]} 49. Re4 {[%emt 0:00:05]} Rf3 {[%emt 0:00:02]} 50. Ne6+ {[%emt 0:00:03]} Kd7 {[%emt 0:00:01]} 51. Nd4 {[%emt 0:00:03]} Rd3 {[%emt 0:00:03]} 52. Nf5 {[%emt 0:00:13]} Rf3 {[%emt 0:00:01]} 53. Rd4 {[%emt 0:00:04]} Ke6 {[%emt 0:00:04]} 54. Rd2 {[%emt 0:00:04] aiming for Nd4+.} Ke5 {[%emt 0:00:03]} 55. Re2+ {[%emt 0:00:04]} Kf4 {[%emt 0:00:01]} 56. Ne7 {[%emt 0:00:05][%cal Re7d5]} Ne3 {[%emt 0:00:13]} 57. Ra2 {[%emt 0:00:04]} Ke5 {[%emt 0:00:10]} 58. Ng6+ {[%emt 0:00:02]} Ke6 {[%emt 0:00:01] The position is equal.} 59. Re2 {[%emt 0:00:08]} Kf7 {[%emt 0:00:01]} 60. Kh5 {[%emt 0:00:04]} Rxh3+ {[%emt 0:00:02]} 61. Nh4 {[%emt 0:00:00]} Nd5 {[%emt 0:00:02] ( -> ...Nf4+)} (61... Nf1 $5 62. g5 $8 f5 $11) 62. Rf2 {[%emt 0:00:01] Inhibits Nf4+.} Ke6 {[%emt 0:00:04]} 63. g5 {[%emt 0:00:02]} fxg5 {[%emt 0:00:01]} 64. Kxg5 {[%emt 0:00:00]} Rg3+ {[%emt 0:00:01]} 65. Kh6 $1 {[%emt 0:00:00]} Rg1 {[%emt 0:00:02]} 66. Re2+ {[%emt 0:00:02]} Kd6 {[%emt 0:00:02]} 67. Nf5+ {[%emt 0:00:02]} Kc5 {[%emt 0:00:02] Black defended with fortune.   Weighted Error Value: White=0.13 (very precise) /Black=0.14 (very precise)} 1/2-1/2